Cogmind - Beta 16 --- EXPLORER MODE // 2026.01.06 @ 10:16:02 Player: K.K.Y. Result: Destroyed by SC-1U4(R) with Subdweller Machine Gun Performance ------------- Evolutions (0) 0 Regions Visited (3) 600 Robots Destroyed (37) 185 Value Destroyed (782) 782 Prototype IDs (14) 280 Alien Tech Used (0) 0 Bonus (-161) -161 TOTAL SCORE: 1686 Bonus ------- Friendly Fire -161 Cogmind --------- Core Integrity 0/250 Matter 259/300 Energy 94/100 System Corruption 0% Temperature Cool (0) Movement Treading (240) Ox1 Location -10/Subcaves Parts ------- > --- POWER (1) -------- (None) > --- PROPULSION (2) --- Light Treads Light Treads > --- UTILITY (3) ------ High-capacity Storage Unit Structural Scanner Targeting Computer > --- WEAPON (2) ------- Heavy Assault Rifle Makeshift Axe > --- INVENTORY (20) --- Ion Engine Makeshift Power Source Light Treads Light Treads Arachnoskeleton Large Storage Unit Huge Storage Unit Humpback Improved Terrain Scanner Riot Gun Beamcaster Beamcaster Beam Cannon Multitool Makeshift Hammer Peak State ------------ > --- POWER ------------ Ion Engine > --- PROPULSION ------- Light Treads Light Treads > --- UTILITY ---------- High-capacity Storage Unit Structural Scanner Targeting Computer > --- WEAPON ----------- Heavy Battle Rifle Makeshift Axe > --- INVENTORY -------- Ion Engine Makeshift Power Source Light Treads Light Treads Arachnoskeleton Large Storage Unit Huge Storage Unit Improved Terrain Scanner Light Armor Plating Light Armor Plating Beamcaster Beamcaster Beam Cannon Heavy Assault Rifle Multitool Makeshift Hammer [Rating: 19] Favorites ----------- Power Ion Engine Engine Ion Engine Propulsion Light Treads Treads Light Treads Utility Targeting Computer Device Structural Scanner Storage Large Storage Unit Processor Targeting Computer Weapon Medium Laser Energy Gun Medium Laser Ballistic Gun Heavy Battle Rifle Special Weapon Mining Laser Slashing Weapon Makeshift Axe Build | -11 -10 -10 -10 ------- Run | Yrd Mat Min Sub Slots Evolved 1 | . 1 . . Power . | . . . . Propulsion . | . . . . Utility 1 | . 1 . . Weapon . | . . . . Parts Attached 20 | 3 8 2 7 Power 1 | . 1 . . Engine 1 | . 1 . . Core . | . . . . Reactor . | . . . . Propulsion 5 | . 2 . 3 Treads 5 | . 2 . 3 Leg . | . . . . Wheel . | . . . . Hover . | . . . . Flight . | . . . . Utility 6 | 2 4 . . Device 2 | . 2 . . Storage 2 | . 2 . . Processor 2 | 2 . . . Hackware . | . . . . Protection . | . . . . Artifact . | . . . . Weapon 8 | 1 1 2 4 Energy Gun 4 | 1 1 2 . Energy Cannon . | . . . . Ballistic Gun 2 | . . . 2 Ballistic Cannon . | . . . . Launcher . | . . . . Special Weapon 1 | . . . 1 Impact Weapon . | . . . . Slashing Weapon 1 | . . . 1 Piercing Weapon . | . . . . Special Melee Weapon . | . . . . Unidentified Prototypes . | . . . . Parts Lost 5 | . 1 . 4 Power 1 | . . . 1 Propulsion 1 | . . . 1 Utility 1 | . 1 . . Weapon 2 | . . . 2 Highest Loss Streak 2 | . 1 . 2 To Critical Strikes . | . . . . Average Backups 10 | 3 4 10 15 Power 1 | . . 1 1 Propulsion 2 | 1 1 2 2 Utility 3 | . 2 4 4 Weapon 3 | . 1 2 5 Tool/Special . | . . . . Unused Backups 16 | . . . 16 Power 2 | . . . 2 Propulsion 3 | . . . 3 Utility 5 | . . . 5 Weapon 5 | . . . 5 Tool/Special 1 | . . . 1 Average Slot Usage (%) 92 | . 73 100 99 Engine 10 | . 6 12 11 Treads 22 | . 14 25 24 Device 11 | . 11 12 12 Storage 9 | . 3 12 12 Processor 12 | . 14 12 12 Energy Gun 15 | . 21 25 2 Ballistic Gun 4 | . . . 10 Slashing Weapon 3 | . . . 9 Peak Build Rating 19 | 3 9 10 19 Average Rating 11 | 2 6 9 16 On Entrance 5 | . 3 9 10 Avg Prop Armor Cover (%) . | . . . . Naked Turns . | . . . . Heaviest Build 53 | 2 29 30 53 Greatest Support 40 | 3 40 40 40 Greatest Overweight (x) 1 | . 1 . 1 Average Overweight (x) . | . . . . Largest Inventory Capacity 20 | 5 20 15 20 Average Capacity 13 | 5 7 15 17 Most Carried 19 | 5 10 15 19 Average Carried 11 | 3 4 10 16 Final Capacity 20 | 5 15 15 20 Final Carried 18 | 5 9 15 18 Class Distribution -------------------- 100% | Hacker-Mutant Dominant Class ---------------- Hacker-Mutant | -10/Materials Hacker-Mutant | -10/Mines Hacker-Mutant | -10/Subcaves Resources | -11 -10 -10 -10 ----------- Run | Yrd Mat Min Sub Matter Collected 553 | 230 80 30 213 Remotely . | . . . . Salvage Created 1167 | 195 464 100 408 Parts 82 | 17 36 5 24 Haulers Intercepted 2 | . 2 . . Recyclers Shooed . | . . . . Parts Field Recycled . | . . . . Retrieved Matter . | . . . . Parts Self-Destructed . | . . . . Prevented . | . . . . Parts Restored . | . . . . Kills | -11 -10 -10 -10 ------- Run | Yrd Mat Min Sub Combat Hostiles Destroyed 24 | . 12 2 10 Guns 23 | . 12 2 9 Classes Destroyed 8 | 2 5 . 1 Tunneler 7 | 7 . . . Hauler 2 | . 2 . . Recycler 1 | 1 . . . Watcher 2 | . 2 . . Swarmer 9 | . 7 2 . Grunt 2 | . 2 . . Artisan 1 | . . . 1 Subdweller 13 | . 3 . 10 Thug 1 | . . 1 . Best Kill Streak 5 | 5 4 2 4 Combat Bots Only 4 | . 4 2 4 Max Kills in Single Turn 2 | 1 2 2 1 Gunslinging 1 | . 1 1 . Exploded . | . . . . Melee . | . . . . Uniques/NPCs Destroyed . | . . . . Combat | -11 -10 -10 -10 -------- Run | Yrd Mat Min Sub Hostile Shots Fired 114 | . 53 1 60 Missed 33 | . 14 . 19 Hits 81 | . 39 1 41 Projectile 81 | . 39 1 41 Critical Strikes 1 | . 1 . . Damage Taken 920 | . 329 6 585 Core 258 | . 131 . 127 Absorbed by Shields . | . . . . Ignored by Resistances 567 | . 211 4 352 Core Remaining (%) 100 | 100 . . . Volleys Fired 153 | 25 50 4 74 Largest 2 | 1 2 2 2 Hottest 150 | 50 90 100 150 Shots Fired 200 | 25 81 8 86 Gun 189 | 25 81 8 75 Cannon . | . . . . Launcher . | . . . . Special 11 | . . . 11 Kinetic 64 | . . . 64 Thermal 136 | 25 81 8 22 Explosive . | . . . . Electromagnetic . | . . . . Robot Hit Streak 54 | 25 28 28 54 Robot Miss Streak 1 | . 1 . 1 Penetration Max . | . . . . Secondary Targets 4 | . 3 1 . Max Gunslinging Chain 1 | . 1 1 . Shots Hit Robots 138 | 25 70 8 35 Core Hits 50 | 9 24 4 13 Critical Kills . | . . . . Critical Parts Destroyed 1 | . . . 1 Critical Strikes 7 | 3 3 . 1 Burn 6 | 3 3 . . Destroy 1 | . . . 1 Melee Attacks . | . . . . Impact . | . . . . Slashing . | . . . . Piercing . | . . . . Sneak Attacks . | . . . . Combat Hostiles . | . . . . Follow-up Attacks . | . . . . Damage Inflicted 1931 | 311 826 98 696 Guns 1883 | 311 826 98 648 Cannons . | . . . . Explosions . | . . . . Melee . | . . . . Ramming . | . . . . Kinetic 648 | . . . 648 Thermal 1283 | 311 826 98 48 Explosive . | . . . . Electromagnetic . | . . . . Impact . | . . . . Slashing . | . . . . Piercing . | . . . . Highest Corruption . | . . . . Average Corruption . | . . . . Corruption Purged . | . . . . Corruption Blocked . | . . . . Overload Shots . | . . . . Overflow Damage . | . . . . Projectiles . | . . . . Explosions . | . . . . Melee . | . . . . Knockbacks . | . . . . Impact . | . . . . Kinetic . | . . . . Secondary . | . . . . Self-Inflicted Damage . | . . . . Shots . | . . . . Rammed . | . . . . Targets Rammed . | . . . . Kicked . | . . . . Crushed . | . . . . Highest Temperature 238 | 25 238 78 . Average Temperature 73 | 25 83 30 . Received Heat Transfer 246 | . 147 . 99 Siege Activations . | . . . . Martial Activations . | . . . . Shielding Activations . | . . . . Robots Disrupted . | . . . . Combat Hostiles . | . . . . Robots Corrupted . | . . . . Combat Hostiles . | . . . . Parts Fried . | . . . . Impact Corruptions . | . . . . Robots Melted . | . . . . Combat Hostiles . | . . . . Parts Melted 6 | 1 5 . . Heat Transferred 4030 | 1147 2487 296 100 Parts Sabotaged . | . . . . Parts Stolen . | . . . . Parts Stripped . | . . . . Power Chain Reactions . | . . . . Alert | -11 -10 -10 -10 ------- Run | Yrd Mat Min Sub Maximum Alert Level . | . . . . Low Security (%) 100 | 100 100 100 . Level 1 . | . . . . Level 2 . | . . . . Level 3 . | . . . . Level 4 . | . . . . Level 5 . | . . . . High Security . | . . . . Max Security . | . . . . Peak Influence 70 | 10 70 50 . Initial . | . . . . Average 4 | 1 9 1 . Influence Increases 368 | 40 278 50 . Destroy 0b10 Robot/C 220 | . 180 40 . Destroy 0b10 Robot/NC 60 | 40 20 . . Destroy Leader 68 | . 58 10 . Successful Hack 5 | . 5 . . Lose Combat Pursuer 15 | . 15 . . Influence Decreases 368 | 40 278 50 . Time Decay 368 | 40 278 50 . Squads Dispatched . | . . . . Investigation . | . . . . Extermination . | . . . . Reinforcement . | . . . . Assault . | . . . . Garrison . | . . . . Intercept . | . . . . Searches Triggered . | . . . . Construction Impeded . | . . . . Haulers Reinforced . | . . . . Active Scanning Responses . | . . . . Cargo Convoy Interrupts . | . . . . Stealth | -11 -10 -10 -10 --------- Run | Yrd Mat Min Sub Distress Signals 1 | . 1 . . Communications Jammed . | . . . . Distress Signals . | . . . . Times Spotted 33 | . 17 3 13 Peak Tracking Total 4 | . 2 1 4 Tactical Retreats 1 | . 1 . . Traps | -11 -10 -10 -10 ------- Run | Yrd Mat Min Sub Traps Triggered 2 | . 2 . . Indirectly . | . . . . Trap Hack Attempts . | . . . . Triggered . | . . . . Disarmed . | . . . . Reprogrammed 7 | . 7 . . Reused . | . . . . Traps Extracted . | . . . . Installed . | . . . . Triggered . | . . . . Machines | -11 -10 -10 -10 ---------- Run | Yrd Mat Min Sub Machines Disabled 1 | . . . 1 Max in Single Turn 1 | . . . 1 Machines Repaired . | . . . . Machines Dismantled . | . . . . Machines Sabotaged . | . . . . Overloaded Fab Kills . | . . . . Hacking | -11 -10 -10 -10 --------- Run | Yrd Mat Min Sub Machines Accessed 7 | . 6 . 1 Terminals 6 | . 6 . . Fabricators . | . . . . Repair Stations . | . . . . Recycling Units . | . . . . Scanalyzers . | . . . . Garrison Access . | . . . . Total Hacks 12 | . 11 . 1 Successful 10 | . 9 . 1 Failed 2 | . 2 . . Catastrophic . | . . . . Database Lockouts . | . . . . Manual 8 | . 8 . . Terminals 11 | . 11 . . Fabricators . | . . . . Repair Stations . | . . . . Recycling Units . | . . . . Scanalyzers . | . . . . Garrison Access . | . . . . Terminal Hacks 4 | . 3 . 1 Prototype ID Bank 1 | . 1 . . Reprogram Traps 2 | . 2 . . Proto ID Catalog 1 | . . . 1 Fabricator Hacks . | . . . . Repair Station Hacks . | . . . . Recycling Unit Hacks . | . . . . Scanalyzer . | . . . . Garrison Access Hacks . | . . . . Unauthorized Hacks 6 | . 6 . . Terminals 6 | . 6 . . Botnet 6 | . 6 . . Fabricators . | . . . . Repair Stations . | . . . . Recycling Units . | . . . . Scanalyzers . | . . . . Garrison Access . | . . . . Data Cores Recovered . | . . . . Used . | . . . . Hacking Detections 4 | . 4 . . Full Trace Events . | . . . . Feedback Events . | . . . . Feedback Blocked . | . . . . Robot Schematics Acquired . | . . . . Robots Built . | . . . . Authchips . | . . . . Time . | . . . . Total Robot Build Rating . | . . . . Part Schematics Acquired . | . . . . Parts Built . | . . . . Authchips . | . . . . Time . | . . . . Total Part Build Rating . | . . . . Part Studies Acquired . | . . . . Parts Repaired . | . . . . Time . | . . . . Parts Recycled . | . . . . Recycled Matter . | . . . . Retrieved Matter . | . . . . Retrieved Components . | . . . . Parts Scanalyzed . | . . . . Part Schematics Acquired . | . . . . Parts Damaged . | . . . . Bothacking | -11 -10 -10 -10 ------------ Run | Yrd Mat Min Sub Used RIF Installer . | . . . . Robots Hacked . | . . . . Non-combat . | . . . . Combat . | . . . . Robot Hacks Applied . | . . . . Relay Couplers Released . | . . . . Fabnet Peak Effective % . | . . . . Robots Rewired . | . . . . Allies Hacked . | . . . . Hacks Repelled . | . . . . Allies | -11 -10 -10 -10 -------- Run | Yrd Mat Min Sub Total Allies . | . . . . Largest Group . | . . . . Highest-Rated Group . | . . . . Highest-Rated Ally . | . . . . Total Orders . | . . . . Ally Attacks . | . . . . Total Damage . | . . . . Kills . | . . . . Allies Corrupted . | . . . . Allies Melted . | . . . . Intel | -11 -10 -10 -10 ------- Run | Yrd Mat Min Sub Active Infowar (turns) 3476 | . 497 1360 1619 Structural 3476 | . 497 1360 1619 Robot Analysis Total . | . . . . Derelict Logs Recovered 2 | . . 1 1 Drone Launches . | . . . . Drone Recoveries . | . . . . Exploration | -11 -10 -10 -10 ------------- Run | Yrd Mat Min Sub Turns Passed 4248 | 222 1047 1360 1619 Spaces Moved 2130 | 83 552 790 705 Core 313 | 83 230 . . Treads 1817 | . 322 790 705 Legs . | . . . . Wheels . | . . . . Hover . | . . . . Flight . | . . . . Fastest Speed 50 | 50 50 160 160 Average Speed 160 | 50 127 160 199 Slowest Speed 240 | 50 160 160 240 Overloaded Moves . | . . . . Propulsion Burnouts . | . . . . Robots Hopped . | . . . . Potential Cave-ins . | . . . . Cave-ins Triggered . | . . . . Exploration Rate (%) 58 | 3 86 100 43 Regions Visited 3 Branch Regions 2 Pre-discovered Areas 2 | . . . 2 Known Exits Taken 3 | 1 1 1 . Unknown Exits Taken . | . . . . Scrap Searched 5 | . . . 5 Spaces Dug 4 | . . . 4 Terrain Destroyed 4 | . . . 4 Melee . | . . . . Projectile 4 | . . . 4 AOE . | . . . . Terrain Rammed . | . . . . Walls Destroyed . | . . . . Machines Disabled . | . . . . Actions | -11 -10 -10 -10 --------- Run | Yrd Mat Min Sub Total 2738 | 237 815 877 809 Wait 396 | 120 194 73 9 Move 2127 | 82 551 789 705 Hop . | . . . . Pick Up 29 | 7 9 7 6 Fast Attach 6 | 1 3 . 2 Attach 8 | 2 4 . 2 Detach 1 | . 1 . . Swap 8 | . 1 3 4 Drop 10 | . 2 1 7 Fire 153 | 25 50 4 74 Melee . | . . . . Ram . | . . . . Kick . | . . . . Crush . | . . . . Escape Stasis . | . . . . Rewire . | . . . . Trap . | . . . . Miscellaneous . | . . . . Route ------- -11/Scrapyard -10/Materials (discovered 4 exits: *Mat x2 / *Min x2) -10/Mines (discovered 3 exits: *Mat x2 / *Sub) -10/Subcaves (discovered 1 exit: *Mat) History --------- Turn | Location | Event 4 | -11/Scrapyard | Identified exit to Materials 4 | -11/Scrapyard | Discovered exit to Materials (range 15) 223 | -11/Scrapyard | Entered Materials 223 | -10/Materials | Evolved 1 slot: Utility x1 300 | -10/Materials | Build established: Hacker-Mutant 682 | -10/Materials | Identified exit to Materials 682 | -10/Materials | Discovered exit to Materials (range 4) 696 | -10/Materials | Identified exit to Mines 696 | -10/Materials | Discovered exit to Mines (range 16) 790 | -10/Materials | Discovered exit to Materials (range 4) 1023 | -10/Materials | Derelicts attacked the area 1079 | -10/Materials | Discovered exit to Mines (range 8) 1185 | -10/Materials | Core integrity fell below 50% 1270 | -10/Materials | Entered Mines 1293 | -10/Mines | Discovered exit to Materials (range 5) 1299 | -10/Mines | Identified exit to Subcaves 1299 | -10/Mines | Discovered exit to Subcaves (range 12) 1336 | -10/Mines | Discovered exit to Materials (range 4) 1613 | -10/Mines | Learned 2 Materials zone layouts 2106 | -10/Mines | Joined a pair of Derelicts in attacking an 0b10 outpost 2630 | -10/Mines | Entered Subcaves 2631 | -10/Subcaves | Approached by a straggling Scientist 2656 | -10/Subcaves | Learned location of Zion (-6) 2696 | -10/Subcaves | Shifting Twisted Machinery released Sub. Monowheel 2697 | -10/Subcaves | Shifting Twisted Machinery released Riot Gun 2862 | -10/Subcaves | Met a Zionite searching for "candidates" 3042 | -10/Subcaves | Shifting Twisted Machinery released Mak. Thermal Plating 3073 | -10/Subcaves | Shifting Twisted Machinery released Mak. Hammer 3289 | -10/Subcaves | Visited 4L-MR0's lab 3314 | -10/Subcaves | Found Prototype Leg 3490 | -10/Subcaves | Identified Arachnoskeleton 3837 | -10/Subcaves | Shifting Twisted Machinery released Sub. Power Source 3849 | -10/Subcaves | Shifting Twisted Machinery released Riot Gun 3906 | -10/Subcaves | A swath of the cavern ceiling suddenly collapsed 4072 | -10/Subcaves | Identified exit to Materials 4072 | -10/Subcaves | Discovered exit to Materials (range 16) 4098 | -10/Subcaves | Core integrity fell below 20% 4249 | -10/Subcaves | Destroyed by SC-1U4(R) with Subdweller Machine Gun Last Messages --------------- here" 04072_ EXIT=FOUND: MATERIALS 04096_ MH-KBX(R) destroyed. 04106_ QG-MII(R) destroyed. 5R-7M2(c): "I think it's somewhere southeast of here" 04137_ Acquired 54 matter. 04142_ Dropped Lgt. Armor Plating. 04143_ Acquired Humpback. 04146_ Acquired 15 matter. 5R-7M2(c): "I think it's somewhere east of here" 04221_ Ion Engine destroyed. 04225_ PE-XCW(R) destroyed. 04231_ YG-6N4(R) suffers critical hit (Destroy). 04231_ Destroyed Sub. Optics. 04239_ YG-6N4(R) destroyed. 04240_ SC-1U4(R) affixes Scrap Shield Fragment to Scrap Shield. 04245_ Hvy. Battle Rifle destroyed. Map ----- +----------------------------------------------------+ | ????????????????????????????## # | | ????????????????????????????### " | | ????????????????????############ ## | | ??????????????################## < ## | | ??????????????######## ## &! ## # | | ??????????????## !! ! ### ### | | ?????????????### &!=*& ######### | | ?????????????### ## # ##%# ### ######### | | ?????????????## ############### ####?#### | | ?????????????### ######### ### ##???### | | ?????????????## #####????? ### ##????## | | ?????????????## ## ##### ##### ###?????? | | ?????????????## #### ###########?????? | | ?????????????### ## ###???#####??????? | | ?????????????### ###???????????????? | | ??????????????## ## ##????????????????? | | ??????????????### #### ###????????????????? | | ??????????????### ####??? ## ????????????????? | | ??????????????### ####??? ##?????????????????? | | ??????????????### ####??????????????????????? | | ??????????????## ###??????????????????????? | | ??????????????## ##??????????????????????? | | ??????????????## ###?????????????????????? | | ??????????????### c #### ??????????????????? | | ??????????????#### ###### ?????? ##???????? | | ???????????????### ## @ ### ##???????? | | ????????????????####### !R! ##???????? | | ????????????????####### R= ##???????? | | ???????????????????### ## ##???????? | | ???????????????????## ## !* ####???????? | | ??????????????????? ?=%[ ######???????? | | ?????????????????? ### ??"## #####?????????? | | ???????????????## #### ??#### ###???????????? | | ???????????????## ??### ??###### ????????????? | | ???????????????## ?????? #???#" ???????????? | | ???????????????###??????$##???????? ??????????? | | ???????????????###?????? #????????????????????? | | ???????????????????????? ?????????????????????? | | ???????????????????????? ??????????????????????? | | ???????????????????????? ??????????????????????? | | ???????????????????????????????????????????????? | | ???????????????????????????????????????????????? | | ???????????????????????????????????????????????? | | ???????????????????????????????????????????????? | | ???????????????????????????????????????????????? | | ???????????????????????????????????????????????? | | ???????????????????????????????????????????????? | | ???????????????????????????????????????????????? | | ???????????????????????????????????????????????? | | ???????????????????????????????????????????????? | +----------------------------------------------------+ Best States ------------- Heat Dissipation 35 Energy Generation 10 Energy Capacity 250 Matter Stores 300 Matter Capacity 300 Sight Range 16 Terrain Scan Density 10 Resistance: KI 35 Resistance: TH 35 Resistance: EX 35 Resistance: EM 35 Resistance: I 35 Resistance: S 35 Resistance: P 35 Evasion (%) 50 Targeting Accuracy 10 Recoil Reduction 2 Offensive Hacking 20 Item Schematics ----------------- None Robot Schematics ------------------ None Fabricated ------------ Nothing Repaired ---------- Nothing Studied --------- None Alien Tech Used ----------------- None Achievements -------------- None Challenges ------------ None Game ------ Seed SubdwellerDerelictPod Manual? 0 Play Time 00:19:10 Cumulative 251.7 hours Start 2026.01.06 @ 09:57:21 End 2026.01.06 @ 10:16:02 Sessions 1 Manual Loads 0 Difficulty Explorer Special Mode None Game No. 395 Rogue 0 Adventurer 0 Explorer 395 Win Type - Total 0 Types 0/0/0/0/0/0/0/0/0/0 Lore% 72 Gallery% 69 Achievement% 54 Wizard Run 0 Options --------- Layout 1 ASCII 0 Keyboard 0 Movement Mouse Keybinds 0 Fullscreen 1 Font 24/Smallcaps Map View 50x35 Zoom Use 0% Tactical HUD 1 Map Filters NONE Filters NONE Steam 1 RUN: a64f4aee-4750-476e-b21f-e27a30697f66